fUSD/lending_fUSD_20260221
["ID","MTS","AMOUNT","RATE_DAILY","PERIOD"]
[406252379,1771661445681,-500.0,0.00041661,60]
[406252380,1771661445690,-500.0,0.00041661,60]
[406252381,1771661445702,-500.0,0.00041661,60]
[406252382,1771661445711,-500.0,0.00041661,60]
[406252383,1771661445720,-250.0,0.00041661,60]
[406252384,1771661445729,-520.0,0.00041661,60]
[406252385,1771661445739,-500.0,0.00041661,60]
[406252386,1771661445749,-250.0,0.00041661,60]
[406252387,1771661445759,-500.0,0.00041661,60]
[406252388,1771661445768,-539.24,0.00041661,60]
[406252389,1771661445777,-250.0,0.00041661,60]
[406252390,1771661445787,-500.0,0.00041661,60]
[406252391,1771661445797,-500.0,0.00041661,60]
[406252392,1771661445807,-559.19188,0.00041661,60]
[406252393,1771661445817,-500.0,0.00041661,60]
[406252394,1771661445826,-250.0,0.00041661,60]
[406252395,1771661445836,-579.88197956,0.00041661,60]
[406252396,1771661445846,-500.0,0.00041661,60]
[406252397,1771661445855,-254.8861323,0.00041661,60]
[406252398,1771661445864,-601.3376128,0.00041661,60]
[406252399,1771661445873,-500.0,0.00041661,60]
[406252400,1771661445882,-623.58710448,0.00041661,60]
[406252401,1771661445891,-646.65982734,0.00041661,60]
[406252402,1771661445900,-428.6339524,0.00041661,60]
[406252403,1771661445908,-911.64591255,0.00041661,60]
[406252404,1771661445917,-500.0,0.00041661,60]
[406252405,1771661445926,-518.5,0.00041661,60]
[406252407,1771661445935,-537.6845,0.00041661,60]
[406252408,1771661445944,-557.5788265,0.00041661,60]
[406252410,1771661445953,-578.20924308,0.00041661,60]
[406252412,1771661445962,-599.60298507,0.00041661,60]
[406252414,1771661445971,-621.78829552,0.00041661,60]
[406252416,1771661445979,-644.79446246,0.00041661,60]
[406252418,1771661445988,-668.65185757,0.00041661,60]
[406252420,1771661445997,-693.3919763,0.00041661,60]
[406252421,1771661446006,-719.04747942,0.00041661,60]
[406252423,1771661446015,-745.65223616,0.00041661,60]
[406252425,1771661446023,-773.2413689,0.00041661,60]
[406252426,1771661446033,-801.85129955,0.00041661,60]
[406252428,1771661446042,-831.51979763,0.00041661,60]
[406252430,1771661446050,-862.28603014,0.00041661,60]
[406252432,1771661446060,-151.0,0.00041661,60]
[406252434,1771661446069,-894.19061326,0.00041661,60]
[406252436,1771661446077,-151.0,0.00041661,60]
[406252437,1771661446086,-927.27566595,0.00041661,60]
[406252439,1771661446095,-151.0,0.00041661,60]
[406252441,1771661446103,-961.58486559,0.00041661,60]
[406252443,1771661446113,-151.0,0.00041661,60]
[406252444,1771661446121,-997.16350561,0.00041661,60]
[406252446,1771661446131,-151.0,0.00041661,60]
[406252448,1771661446139,-151.0,0.00041661,60]
[406252450,1771661446148,-151.0,0.00041661,60]
[406252451,1771661446157,-151.0,0.00041661,60]
[406252452,1771661446165,-151.0,0.00041661,60]
[406252453,1771661446174,-151.0,0.00041661,60]
[406252454,1771661446183,-151.0,0.00041661,60]
[406252455,1771661446192,-151.0,0.00041661,60]
[406252456,1771661446201,-151.0,0.00041661,60]
[406252457,1771661446210,-151.0,0.00041661,60]
[406252458,1771661446219,-151.0,0.00041661,60]
[406252459,1771661446228,-151.0,0.00041661,60]
[406252460,1771661446236,-151.0,0.00041661,60]
[406252461,1771661446246,-151.0,0.00041661,60]
[406252462,1771661446255,-151.0,0.00041661,60]
[406252463,1771661446265,-151.0,0.00041661,60]
[406252464,1771661446275,-250.0,0.00041661,60]
[406252465,1771661446284,-184.69909757,0.00041661,60]
[406252466,1771661446293,-500.0,0.00041661,60]
[406252467,1771661446302,-500.0,0.00041661,60]
[406252468,1771661446312,-623.6559736,0.00041661,60]
[406252469,1771661446323,-500.0,0.00041661,60]
[406252470,1771661446332,-500.0,0.00041661,60]
[406252471,1771661446343,-500.0,0.00041661,60]
[406252472,1771661446353,-200.0,0.00041661,60]
[406252473,1771661446363,-500.0,0.00041661,60]
[406252474,1771661446372,-207.4,0.00041661,60]
[406252475,1771661446385,-500.0,0.00041661,60]
[406252476,1771661446394,-215.0738,0.00041661,60]
[406252477,1771661446404,-500.0,0.00041661,60]
[406252478,1771661446414,-223.0315306,0.00041661,60]
[406252479,1771661446425,-500.0,0.00041661,60]
[406252480,1771661446436,-231.28369723,0.00041661,60]
[406252481,1771661446448,-500.0,0.00041661,60]
[406252482,1771661446458,-239.84119403,0.00041661,60]
[406252483,1771661446469,-500.0,0.00041661,60]
[406252484,1771661446478,-248.71531821,0.00041661,60]
[406252485,1771661446488,-500.0,0.00041661,60]
[406252486,1771661446498,-500.0,0.00041661,60]
[406252487,1771661446509,-257.91778498,0.00041661,60]
[406252488,1771661446519,-500.0,0.00041661,60]
[406252489,1771661446528,-267.46074303,0.00041661,60]
[406252490,1771661446537,-500.0,0.00041661,60]
[406252491,1771661446546,-277.35679052,0.00041661,60]
[406252492,1771661446555,-500.0,0.00041661,60]
[406252493,1771661446565,-287.61899177,0.00041661,60]
[406252494,1771661446574,-500.0,0.00041661,60]
[406252495,1771661446583,-298.26089446,0.00041661,60]
[406252496,1771661446593,-500.0,0.00041661,60]
[406252497,1771661446603,-309.29654756,0.00041661,60]
[406252498,1771661446612,-500.0,0.00041661,60]
[406252499,1771661446623,-320.74051982,0.00041661,60]
[406252500,1771661446635,-500.0,0.00041661,60]
[406252501,1771661446644,-332.60791905,0.00041661,60]
[406252502,1771661446654,-500.0,0.00041661,60]
[406252503,1771661446663,-495.58960583,0.00041661,60]
[406252504,1771661446673,-500.0,0.00041661,60]
[406252505,1771661446682,-151.0,0.00041661,60]
[406252506,1771661446692,-156.587,0.00041661,60]
[406252507,1771661446702,-162.380719,0.00041661,60]
[406252508,1771661446711,-168.3888056,0.00041661,60]
[406252509,1771661446719,-174.61919141,0.00041661,60]
[406252510,1771661446728,-181.08010149,0.00041661,60]
[406252511,1771661446737,-187.78006525,0.00041661,60]
[406252512,1771661446746,-194.72792766,0.00041661,60]
[406252513,1771661446755,-201.93286099,0.00041661,60]
[406252514,1771661446765,-209.40437684,0.00041661,60]
[406252515,1771661446774,-217.15233878,0.00041661,60]
[406252516,1771661446782,-341.20368415,0.00041661,60]
[406252517,1771661446791,-500.0,0.00041661,60]
[406252518,1771661446801,-500.0,0.00041661,60]
[406252519,1771661446811,-500.0,0.00041661,60]
[406252520,1771661446822,-500.0,0.00041661,60]
[406252521,1771661446831,-500.0,0.00041661,60]
[406252522,1771661446840,-151.0,0.00041661,60]
[406252523,1771661446849,-372.94109186,0.00041661,60]
[406252524,1771661446858,-156.587,0.00041661,60]
[406252525,1771661446868,-162.380719,0.00041661,60]
[406252526,1771661446877,-168.3888056,0.00041661,60]
[406252527,1771661446886,-174.61919141,0.00041661,60]
[406252528,1771661446895,-181.08010149,0.00041661,60]
[406252529,1771661446904,-187.78006525,0.00041661,60]
[406252530,1771661446916,-194.72792766,0.00041661,60]
[406252531,1771661446927,-201.93286099,0.00041661,60]
[406252532,1771661446938,-209.40437684,0.00041661,60]
[406252533,1771661446949,-217.15233878,0.00041661,60]
[406252534,1771661446958,-225.18697532,0.00041661,60]
[406252535,1771661446967,-233.51889341,0.00041661,60]
[406252536,1771661446976,-242.15909246,0.00041661,60]
[406252537,1771661446985,-251.11897888,0.00041661,60]
[406252538,1771661446994,-260.4103811,0.00041661,60]
[406252539,1771661447003,-270.0455652,0.00041661,60]
[406252540,1771661447011,-280.03725112,0.00041661,60]
[406252541,1771661447021,-290.39862941,0.00041661,60]
[406252542,1771661447030,-301.1433787,0.00041661,60]
[406252543,1771661447040,-718.0,0.00041732,30]
[406252544,1771661447050,-31783.58,0.00041902,2]
[406252545,1771661447059,-842.0,0.00041918,120]
[406252546,1771661447069,-600.0,0.00041965,14]
[406252547,1771661447078,-300.0,0.00042,120]
[406252548,1771661447088,-1000.0,0.00042,120]
[406252549,1771661447096,-419.07,0.00042,14]
[406252550,1771661447106,-177.06,0.00042,30]
[406252551,1771661447115,-250.82,0.00042,14]
[406252552,1771661447124,-3100.2155197,0.00042,2]
[406252553,1771661447133,-196.0,0.00042065,12]
[406252554,1771661447142,-151.0,0.000421,120]
[406252555,1771661447151,-5000.0,0.00042164,9]
[406252556,1771661447160,-6855.84362491,0.00042164,8]
[406252557,1771661447169,-5000.0,0.00042164,9]
[406252558,1771661447178,-150.0,0.00042173,120]
[406252559,1771661447187,-842.0,0.00042192,120]
[406252560,1771661447196,-34914.56487139,0.00042232,15]
[406252561,1771661447205,-200.0,0.00042261,120]
[406252562,1771661447215,-600.0,0.00042269,14]
[406252563,1771661447225,-87057.0,0.000423,60]
[406252564,1771661447234,-1114.34066363,0.00042332,120]
[406252565,1771661447244,-1796.90538142,0.00042356,30]
[406252566,1771661447255,-1038.2,0.00042392,30]
[406252567,1771661447264,-153.0,0.000424,120]
[406252568,1771661447273,-842.0,0.00042466,120]
[406252569,1771661447283,-1343.33,0.000425,30]
[406252570,1771661447292,-1796.90538142,0.00042521,30]
[406252571,1771661447304,-600.0,0.00042573,14]
[406252572,1771661447314,-1273.0,0.00042601,2]
[406252573,1771661447325,-350.0,0.00042642,2]
[406252574,1771661447334,-234.867,0.00042665,2]
[406252575,1771661447350,-1796.90538142,0.00042685,30]
[406252576,1771661447366,-350.0,0.00042688,2]
[406252577,1771661447375,-151.0,0.000427,120]
[406252578,1771661447384,-350.0,0.00042723,2]
[406252579,1771661447393,-842.0,0.0004274,120]
[406252580,1771661447403,-200.74789,0.000428,24]
[406252581,1771661447412,-1796.90538142,0.00042877,30]
[406252582,1771661447421,-350.0,0.00042883,2]
[406252583,1771661447430,-1900.0,0.000429,15]
[406252584,1771661447439,-753.266,0.00042937,2]
[406252585,1771661447448,-618.0,0.00042937,2]
[406252586,1771661447457,-3493.0,0.00042937,2]
[406252587,1771661447466,-500.0,0.00042989,120]
[406252588,1771661447475,-842.0,0.00043014,120]
[406252589,1771661447484,-1796.90538142,0.00043041,30]
[406252590,1771661447493,-200.01,0.00043068,120]
[406252591,1771661447502,-799.6284652,0.00043166,2]
[406252592,1771661447511,-153.0,0.000432,120]
[406252593,1771661447521,-1796.90538142,0.00043205,30]
[406252594,1771661447530,-150.0,0.00043206,120]
[406252595,1771661447539,-500.0,0.00043223,60]
[406252596,1771661447548,-500.0,0.00043223,60]
[406252597,1771661447559,-300.21155,0.00043245,112]
[406252598,1771661447568,-842.0,0.00043288,120]
[406252599,1771661447577,-1796.90538142,0.0004337,30]
[406252600,1771661447589,-151.0,0.000434,120]
[406252601,1771661447598,-200.0,0.00043421,120]
[406252602,1771661447607,-150.0,0.00043425,120]
[406252603,1771661447616,-150.0,0.00043451,30]
[406252604,1771661447631,-3369.81297004,0.00043451,30]
[406252605,1771661447640,-150.0,0.00043451,30]
[406252606,1771661447649,-912.13181232,0.00043451,30]
[406252607,1771661447658,-1000.0,0.0004347,14]
[406252608,1771661447670,-1343.33,0.000435,30]
[406252609,1771661447679,-1309.15384284,0.00043517,2]
[406252610,1771661447689,-1796.90538142,0.00043534,30]
[406252611,1771661447701,-1000.0,0.00043561,14]
[406252612,1771661447710,-842.0,0.00043562,120]
[406252613,1771661447719,-1000.0,0.00043608,14]
[406252614,1771661447729,-167.6338806,0.00043626,12]
[406252615,1771661447739,-1999.0,0.00043649,120]
[406252616,1771661447748,-87057.0,0.0004365,60]
[406252617,1771661447757,-1000.0,0.00043713,14]
[406252618,1771661447767,-1796.90538142,0.00043726,30]
[406252619,1771661447777,-1000.0,0.00043747,14]
[406252620,1771661447788,-2000.0,0.000438,2]
[406252621,1771661447797,-303.0,0.000438,30]
[406252622,1771661447807,-989.0,0.000438,30]
[406252623,1771661447818,-309.0,0.000438,30]
[406252624,1771661447828,-632.0,0.000438,30]
[406252625,1771661447837,-167.63388055,0.00043825,13]
[406252626,1771661447846,-842.0,0.00043836,120]
[406252627,1771661447856,-167.82603777,0.00043836,2]
[406252628,1771661447865,-500.0,0.00043836,120]
[406252629,1771661447874,-500.0,0.00043836,120]
[406252630,1771661447885,-500.0,0.00043836,120]
[406252631,1771661447896,-500.0,0.00043836,120]
[406252632,1771661447908,-500.0,0.00043836,120]
[406252633,1771661447918,-500.0,0.00043836,120]
[406252634,1771661447928,-500.0,0.00043836,120]
[406252635,1771661447937,-500.0,0.00043836,120]
[406252636,1771661447948,-206.67231633,0.00043836,120]
[406252637,1771661447957,-500.0,0.00043836,120]
[406252638,1771661447967,-150.0,0.00043836,120]
[406252639,1771661447977,-500.0,0.00043836,120]
[406252640,1771661447988,-150.0,0.00043836,120]
[406252641,1771661447998,-150.0,0.00043836,120]
[406252642,1771661448008,-500.0,0.00043836,120]
[406252643,1771661448019,-150.21031043,0.00043836,120]
[406252644,1771661448037,-500.0,0.00043836,120]
[406252645,1771661448051,-150.0,0.00043836,120]
[406252646,1771661448061,-500.0,0.00043836,120]
[406252647,1771661448070,-500.0,0.00043836,120]
[406252648,1771661448079,-150.0,0.00043836,120]
[406252649,1771661448092,-150.38090381,0.00043836,120]
[406252650,1771661448106,-250.0,0.00043836,120]
[406252651,1771661448116,-500.0,0.00043836,120]
[406252652,1771661448125,-500.0,0.00043836,120]
[406252653,1771661448135,-500.0,0.00043836,120]
[406252654,1771661448146,-500.0,0.00043836,120]
[406252655,1771661448155,-500.0,0.00043836,120]
[406252656,1771661448165,-500.0,0.00043836,120]
[406252657,1771661448174,-500.0,0.00043836,120]
[406252658,1771661448184,-500.0,0.00043836,120]
[406252659,1771661448194,-500.0,0.00043836,120]
[406252660,1771661448203,-500.0,0.00043836,120]
[406252661,1771661448212,-500.0,0.00043836,120]
[406252662,1771661448222,-150.0,0.00043836,120]
[406252663,1771661448231,-368.34651577,0.00043836,120]
[406252664,1771661448241,-500.0,0.00043836,120]
[406252665,1771661448250,-500.0,0.00043836,120]
[406252666,1771661448259,-500.0,0.00043836,120]
[406252667,1771661448268,-150.0,0.00043836,120]
[406252668,1771661448278,-500.0,0.00043836,120]
[406252669,1771661448288,-500.0,0.00043836,120]
[406252670,1771661448297,-500.0,0.00043836,120]
[406252671,1771661448307,-150.0,0.00043836,120]
[406252672,1771661448317,-500.0,0.00043836,120]
[406252673,1771661448326,-500.0,0.00043836,120]
[406252674,1771661448336,-500.0,0.00043836,120]
[406252675,1771661448346,-500.0,0.00043836,120]
[406252676,1771661448355,-154.62879025,0.00043836,120]
[406252677,1771661448365,-500.0,0.00043836,120]
[406252678,1771661448375,-500.0,0.00043836,120]
[406252679,1771661448385,-500.0,0.00043836,120]
[406252680,1771661448394,-500.0,0.00043836,120]
[406252681,1771661448404,-500.0,0.00043836,120]
[406252682,1771661448414,-500.0,0.00043836,120]
[406252683,1771661448424,-500.0,0.00043836,120]
[406252684,1771661448433,-500.0,0.00043836,120]
[406252685,1771661448443,-500.0,0.00043836,120]
[406252686,1771661448453,-500.0,0.00043836,120]
[406252687,1771661448463,-500.0,0.00043836,120]
[406252688,1771661448472,-500.0,0.00043836,120]
[406252689,1771661448482,-153.40769947,0.00043836,120]
[406252690,1771661448491,-500.0,0.00043836,120]
[406252691,1771661448501,-500.0,0.00043836,99]
[406252692,1771661448510,-462.77570138,0.00043836,120]
[406252693,1771661448520,-500.64787461,0.00043836,120]
[406252694,1771661448530,-214.10763439,0.00043836,120]
[406252695,1771661448540,-500.0,0.00043836,99]
[406252696,1771661448550,-271.60530425,0.00043836,99]
[406252697,1771661448560,-150.0,0.00043836,120]
[406252698,1771661448570,-500.0,0.00043836,120]
[406252699,1771661448580,-150.0,0.00043836,120]
[406252700,1771661448590,-500.0,0.00043836,120]
[406252701,1771661448600,-500.0,0.00043836,120]
[406252702,1771661448611,-150.07309461,0.00043836,120]
[406252703,1771661448633,-150.0,0.00043836,120]
[406252704,1771661448656,-500.0,0.00043836,120]
[406252705,1771661448665,-500.0,0.00043836,120]
[406252706,1771661448675,-150.0,0.00043836,120]
[406252707,1771661448684,-500.0,0.00043836,120]
[406252708,1771661448694,-500.0,0.00043836,120]
[406252709,1771661448703,-157.69263915,0.00043836,120]
[406252710,1771661448713,-325.39590333,0.00043836,120]
[406252711,1771661448722,-500.0,0.00043836,120]
[406252712,1771661448732,-500.0,0.00043836,120]
[406252713,1771661448742,-501.7162721,0.00043836,120]
[406252714,1771661448754,-478.0,0.00043836,120]
[406252715,1771661448763,-478.0,0.00043836,120]
[406252716,1771661448773,-478.0,0.00043836,120]
[406252717,1771661448783,-478.0,0.00043836,120]
[406252718,1771661448793,-478.0,0.00043836,120]
[406252719,1771661448804,-478.0,0.00043836,120]
[406252720,1771661448815,-478.0,0.00043836,120]
[406252721,1771661448826,-478.0,0.00043836,120]
[406252722,1771661448836,-478.0,0.00043836,120]
[406252723,1771661448847,-478.0,0.00043836,120]
[406252724,1771661448856,-478.0,0.00043836,120]
[406252725,1771661448866,-500.0,0.00043836,30]
[406252726,1771661448876,-478.0,0.00043836,120]
[406252727,1771661448885,-500.0,0.00043836,30]
[406252728,1771661448895,-478.0,0.00043836,120]
[406252729,1771661448905,-500.0,0.00043836,30]
[406252730,1771661448915,-478.0,0.00043836,120]
[406252731,1771661448924,-500.0,0.00043836,30]
[406252732,1771661448934,-478.0,0.00043836,120]
[406252733,1771661448943,-500.0,0.00043836,30]
[406252734,1771661448953,-478.0,0.00043836,120]
[406252735,1771661448962,-500.0,0.00043836,30]
[406252736,1771661448972,-500.0,0.00043836,30]
[406252737,1771661448981,-478.0,0.00043836,120]
[406252738,1771661448990,-500.0,0.00043836,120]
[406252739,1771661448999,-500.0,0.00043836,120]
[406252740,1771661449009,-500.0,0.00043836,120]
[406252741,1771661449018,-478.0,0.00043836,120]
[406252742,1771661449028,-500.0,0.00043836,120]
[406252743,1771661449037,-500.0,0.00043836,120]
[406252744,1771661449047,-514.61514915,0.00043836,120]
[406252745,1771661449056,-478.0,0.00043836,120]
[406252746,1771661449066,-478.0,0.00043836,120]
[406252747,1771661449075,-478.0,0.00043836,120]
[406252748,1771661449085,-478.0,0.00043836,120]
[406252749,1771661449094,-1212.0,0.00043836,120]
[406252750,1771661449104,-1212.0,0.00043836,120]
[406252751,1771661449113,-1212.0,0.00043836,120]
[406252752,1771661449123,-1212.0,0.00043836,120]
[406252753,1771661449132,-478.0,0.00043836,120]
[406252754,1771661449142,-1212.0,0.00043836,120]
[406252755,1771661449151,-1212.0,0.00043836,120]
[406252756,1771661449160,-1212.0,0.00043836,120]
[406252757,1771661449170,-1212.0,0.00043836,120]
[406252758,1771661449182,-1212.0,0.00043836,120]
[406252759,1771661449191,-1212.0,0.00043836,120]
[406252760,1771661449202,-1212.0,0.00043836,120]
[406252761,1771661449213,-1212.0,0.00043836,120]
[406252762,1771661449223,-1212.0,0.00043836,120]
[406252763,1771661449235,-1212.0,0.00043836,120]
[406252764,1771661449246,-1212.0,0.00043836,120]
[406252765,1771661449256,-1212.0,0.00043836,120]
[406252766,1771661449267,-1212.0,0.00043836,120]
[406252767,1771661449277,-491.12713526,0.00043836,120]
[406252768,1771661449287,-1212.0,0.00043836,120]
[406252769,1771661449297,-500.0,0.00043836,120]
[406252770,1771661449308,-150.0,0.00043836,120]
[406252771,1771661449319,-1212.0,0.00043836,120]
[406252772,1771661449329,-500.0,0.00043836,120]
[406252773,1771661449339,-150.0,0.00043836,120]
[406252774,1771661449350,-500.0,0.00043836,120]
[406252775,1771661449360,-166.0,0.00043836,120]
[406252776,1771661449369,-500.0,0.00043836,120]
[406252777,1771661449379,-500.0,0.00043836,120]
[406252778,1771661449388,-500.0,0.00043836,120]
[406252779,1771661449398,-502.91107281,0.00043836,120]
[406252780,1771661449408,-1212.0,0.00043836,120]
[406252781,1771661449417,-500.0,0.00043836,120]
[406252782,1771661449427,-500.0,0.00043836,120]
[406252783,1771661449436,-1055.0,0.00043836,120]
[406252784,1771661449446,-500.0,0.00043836,120]
[406252785,1771661449456,-500.0,0.00043836,120]
[406252786,1771661449465,-1055.0,0.00043836,120]
[406252787,1771661449474,-500.0,0.00043836,120]
[406252788,1771661449488,-500.0,0.00043836,120]
[406252789,1771661449499,-1055.0,0.00043836,120]
[406252790,1771661449509,-500.0,0.00043836,120]
[406252791,1771661449519,-150.36859635,0.00043836,120]
[406252792,1771661449528,-1055.0,0.00043836,120]
[406252793,1771661449538,-500.0,0.00043836,120]
[406252794,1771661449547,-1055.0,0.00043836,120]
[406252795,1771661449557,-500.0,0.00043836,120]
[406252796,1771661449568,-1055.0,0.00043836,120]
[406252797,1771661449580,-500.0,0.00043836,120]
[406252798,1771661449591,-1055.0,0.00043836,120]
[406252799,1771661449601,-861.0,0.00043836,120]
[406252800,1771661449612,-1212.0,0.00043836,120]
[406252801,1771661449621,-861.0,0.00043836,120]
[406252802,1771661449634,-1055.0,0.00043836,120]
[406252803,1771661449644,-861.0,0.00043836,120]
[406252804,1771661449653,-1055.0,0.00043836,120]
[406252805,1771661449663,-1055.0,0.00043836,120]
[406252806,1771661449674,-861.0,0.00043836,120]
[406252807,1771661449683,-1055.0,0.00043836,120]
[406252808,1771661449692,-861.0,0.00043836,120]
[406252809,1771661449704,-150.0,0.00043836,120]
[406252810,1771661449714,-861.0,0.00043836,120]
[406252811,1771661449723,-1055.0,0.00043836,120]
[406252812,1771661449734,-150.0,0.00043836,120]
[406252813,1771661449743,-1055.0,0.00043836,120]
[406252814,1771661449753,-861.0,0.00043836,120]
[406252815,1771661449763,-150.0,0.00043836,120]
[406252816,1771661449773,-1055.0,0.00043836,120]
[406252817,1771661449783,-861.0,0.00043836,120]
[406252818,1771661449794,-1055.0,0.00043836,120]
[406252819,1771661449803,-861.0,0.00043836,120]
[406252820,1771661449814,-1055.0,0.00043836,120]
[406252821,1771661449825,-861.0,0.00043836,120]
[406252822,1771661449836,-150.0,0.00043836,120]
[406252823,1771661449847,-861.0,0.00043836,120]
[406252824,1771661449858,-220.39155386,0.00043836,120]
[406252825,1771661450055,-1055.0,0.00043836,120]
[406252826,1771661450066,-861.0,0.00043836,120]
[406252827,1771661450075,-861.0,0.00043836,120]
[406252828,1771661450085,-1212.0,0.00043836,120]
[406252829,1771661450095,-861.0,0.00043836,120]
[406252830,1771661450105,-861.0,0.00043836,120]
[406252831,1771661450114,-500.0,0.00043836,120]
[406252832,1771661450123,-861.0,0.00043836,120]
[406252833,1771661450134,-1055.0,0.00043836,120]
[406252834,1771661450144,-500.0,0.00043836,120]
[406252835,1771661450153,-500.0,0.00043836,120]
[406252836,1771661450163,-500.0,0.00043836,120]
[406252837,1771661450175,-861.0,0.00043836,120]
[406252838,1771661450185,-500.0,0.00043836,120]
[406252839,1771661450197,-500.0,0.00043836,120]
[406252840,1771661450210,-500.0,0.00043836,120]
[406252841,1771661450219,-500.0,0.00043836,120]
[406252842,1771661450228,-1055.0,0.00043836,120]
[406252843,1771661450238,-500.0,0.00043836,120]
[406252844,1771661450248,-861.0,0.00043836,120]
[406252845,1771661450257,-1212.0,0.00043836,120]
[406252846,1771661450268,-861.0,0.00043836,120]
[406252847,1771661450277,-500.0,0.00043836,120]
[406252848,1771661450287,-1055.0,0.00043836,120]
[406252849,1771661450298,-500.0,0.00043836,120]
[406252850,1771661450310,-500.0,0.00043836,120]
[406252851,1771661450320,-500.0,0.00043836,120]
[406252852,1771661450329,-150.0,0.00043836,120]
[406252853,1771661450338,-861.0,0.00043836,120]
[406252854,1771661450347,-150.0,0.00043836,120]
[406252855,1771661450357,-1055.0,0.00043836,120]
[406252856,1771661450366,-224.82822515,0.00043836,120]
[406252857,1771661450375,-1229.79717779,0.00043836,120]
[406252858,1771661450384,-935.0,0.00043836,120]
[406252859,1771661450394,-935.0,0.00043836,120]
[406252860,1771661450404,-935.0,0.00043836,120]
[406252861,1771661450415,-935.0,0.00043836,120]
[406252862,1771661450425,-861.0,0.00043836,120]
[406252863,1771661450436,-935.0,0.00043836,120]
[406252864,1771661450447,-935.0,0.00043836,120]
[406252865,1771661450456,-935.0,0.00043836,120]
[406252866,1771661450466,-935.0,0.00043836,120]
[406252867,1771661450475,-1055.0,0.00043836,120]
[406252868,1771661450484,-935.0,0.00043836,120]
[406252869,1771661450493,-935.0,0.00043836,120]
[406252870,1771661450502,-935.0,0.00043836,120]
[406252871,1771661450511,-935.0,0.00043836,120]
[406252872,1771661450519,-935.0,0.00043836,120]
[406252873,1771661450529,-935.0,0.00043836,120]
[406252874,1771661450538,-935.0,0.00043836,120]
[406252875,1771661450547,-935.0,0.00043836,120]
[406252876,1771661450555,-861.0,0.00043836,120]
[406252877,1771661450564,-935.0,0.00043836,120]
[406252878,1771661450574,-1055.0,0.00043836,120]
[406252879,1771661450583,-935.0,0.00043836,120]
[406252880,1771661450592,-935.0,0.00043836,120]
[406252881,1771661450601,-861.0,0.00043836,120]
[406252882,1771661450611,-1071.613494,0.00043836,120]
[406252883,1771661450621,-935.0,0.00043836,120]
[406252884,1771661450633,-868.10829242,0.00043836,120]
[406252885,1771661450643,-935.0,0.00043836,120]
[406252886,1771661450652,-935.0,0.00043836,120]
[406252887,1771661450661,-935.0,0.00043836,120]
[406252888,1771661450673,-949.55105984,0.00043836,120]
[406252889,1771661450682,-502.0,0.00043836,2]
[406252890,1771661450692,-502.0,0.00043836,2]
[406252891,1771661450702,-502.0,0.00043836,2]
[406252892,1771661450711,-502.0,0.00043836,2]
[406252893,1771661450720,-502.0,0.00043836,2]
[406252894,1771661450729,-502.0,0.00043836,2]
[406252895,1771661450738,-502.0,0.00043836,2]
[406252896,1771661450748,-502.0,0.00043836,2]
[406252897,1771661450758,-502.0,0.00043836,2]
[406252898,1771661450767,-502.0,0.00043836,2]